Workbook

Sheet 1-3 ГОДА
A1: Меню на 18.02.2026
A2: МОУ детский сад № 320 Ежеденевное 20-ти дневное меню (Зима-осень) для детей дошкольного возраста 1-3 лет, 12 часового режима функционирования
A3: Прием пищи, наименование блюда | B3: Масса порции | C3: Пищевые вещества | F3: Энергети-ческая ценность, ккал | G3: ТТК
C4: Белки, г | D4: Жиры, г | E4: Углеводы, г
A5: Завтрак
A6: КАША ЖИДКАЯ (манная) | B6: 150 | C6: 6.1 | D6: 3.4 | E6: 26.8 | F6: 163.0 | G6: № 83
A7: ЧАЙ С ЛИМОНОМ | B7: 150/7/3,5 | C7: 0.1 | D7: 0.0 | E7: 7.0 | F7: 29.0 | G7: № 393
A8: БАТОН | B8: 50 | C8: 3.8 | D8: 1.5 | E8: 25.7 | F8: 131.0
A9: СЫР (ПОРЦИЯМИ) | B9: 5 | C9: 1.2 | D9: 1.5 | E9: 0.0 | F9: 17.7 | G9: № 7
A10: ИТОГО ЗА ЗАВТРАК | B10: 365 | C10: 11.2 | D10: 6.4 | E10: 59.5 | F10: 340.7
A11: II Завтрак
A12: ФРУКТЫ СВЕЖИЕ (ЯБЛОКО) | B12: 200 | C12: 0.8 | D12: 0.8 | E12: 19.0 | F12: 91.2 | G12: № 368
A13: ИТОГО ЗА 2-й ЗАВТРАК | B13: =SUM(B12) -> 200 | C13: =SUM(C12) -> 0.8 | D13: =SUM(D12) -> 0.8 | E13: =SUM(E12) -> 19.0 | F13: =SUM(F12) -> 91.2
A14: Обед
A15: ОГУРЕЦ СОЛЕНЫЙ | B15: 30 | C15: 0.2 | D15: 0 | E15: 0.5 | F15: 3.9
A16: СУП С МАКАРОННЫМИ ИЗДЕЛИЯМИ НА МЯСО-КОСТНОМ БУЛЬОНЕ | B16: 150 | C16: 2.3 | D16: 1.9 | E16: 12.1 | F16: 74.2 | G16: № 88
A17: ГОЛУБЦЫ ЛЕНИВЫЕ | B17: 120/15 | C17: 7.6 | D17: 10.4 | E17: 11.3 | F17: 177.2 | G17: № 75
A18: КОМПОТ ИЗ СУШЕНЫХ ФРУКТОВ | B18: 150 | C18: 0.0 | D18: 0.0 | E18: 11.6 | F18: 46.5 | G18: № 376
A19: ХЛЕБ ПЕКЛЕВАННЫЙ | B19: 50 | C19: 3.3 | D19: 0.4 | E19: 21.2 | F19: 102.0
A20: ХЛЕБ ПШЕНИЧНЫЙ | B20: 25 | C20: 1.9 | D20: 0.2 | E20: 12.5 | F20: 59.2
A21: ИТОГО ЗА ОБЕД | B21: 540 | C21: 15.3 | D21: =D15+D16+D17+D18+D19+D20 -> 12.9 | E21: =SUM(E15:E20) -> 69.2 | F21: =F15+F16+F17+F18+F19+F20 -> 463.0
A22: Уплотненный полдник
A23: ЗАПЕКАНКА ИЗ ТВОРОГА С МОРКОВЬЮ С СОУСОМ МОЛОЧНЫМ СЛАДКИМ С ВАНИЛЬЮ | B23: 130/40 | C23: 10.3 | D23: 18.3 | E23: 43.9 | F23: 344.3 | G23: №152, №447
A24: ЧАЙ С ЛИМОНОМ | B24: 150/7/3,5 | C24: 0.1 | D24: 0.0 | E24: 7.0 | F24: 29.0 | G24: № 393
A25: ХЛЕБ ПШЕНИЧНЫЙ | B25: 20 | C25: 1.5 | D25: 0.1 | E25: 9.7 | F25: 46.0
A26: БУЛОЧКА ВАНИЛЬНАЯ | B26: 50 | C26: 4.1 | D26: 3.9 | E26: 28.9 | F26: 167.3 | G26: № 467
A27: ИТОГО ЗА ПОЛДНИК | B27: 400 | C27: 16.0 | D27: 22.3 | E27: 89.5 | F27: 586.6
A28: Всего за день: | C28: =SUM(C27+C21+C13+C10) -> 43.3 | D28: =SUM(D27+D21+D13+D10) -> 42.4 | E28: =SUM(E27+E21+E13+E10) -> 237.2 | F28: =SUM(F27+F21+F13+F10) -> 1,481.5

Sheet 3-7 ЛЕТ
A1: Меню на 18.02.2026
A2: МОУ детский сад № 320 Ежеденевное 20-ти дневное меню (Зима-осень) для детей дошкольного возраста 3-7 лет, 12 часового режима функционирования
A3: Прием пищи, наименование блюда | B3: Масса порции | C3: Пищевые вещества | F3: Энергети-ческая ценность, ккал
C4: Белки, г | D4: Жиры, г | E4: Углеводы, г
A5: Завтрак
A6: КАША ЖИДКАЯ (манная) | B6: 180 | C6: 7.3 | D6: 4.2 | E6: 31.4 | F6: 191.3 | G6: № 83
A7: ЧАЙ С ЛИМОНОМ | B7: 180/10/7 | C7: 0.2 | D7: 0.0 | E7: 10.0 | F7: 41.7 | G7: № 393
A8: БАТОН | B8: 30 | C8: 2.3 | D8: 0.9 | E8: 15.4 | F8: 78.6
A9: СЫР (ПОРЦИЯМИ) | B9: 10 | C9: 2.3 | D9: 3.0 | E9: 0.0 | F9: 36.4 | G9: № 7
A10: ИТОГО ЗА ЗАВТРАК | B10: 417 | C10: 12.1 | D10: 8.1 | E10: 56.8 | F10: 348.0
A11: II Завтрак
A12: ФРУКТЫ СВЕЖИЕ (ЯБЛОКО) | B12: 200 | C12: 0.8 | D12: 0.8 | E12: 19.0 | F12: 91.2 | G12: № 368
A13: ИТОГО ЗА 2-й ЗАВТРАК | B13: =SUM(B12) -> 200 | C13: =SUM(C12) -> 0.8 | D13: =SUM(D12) -> 0.8 | E13: =SUM(E12) -> 19.0 | F13: =SUM(F12) -> 91.2
A14: Обед
A15: ОГУРЕЦ СОЛЕНЫЙ | B15: 50 | C15: 0.4 | D15: 0.1 | E15: 0.9 | F15: 6.5
A16: СУП С МАКАРОННЫМИ ИЗДЕЛИЯМИ НА МЯСО-КОСТНОМ БУЛЬОНЕ | B16: 180 | C16: 2.7 | D16: 2.1 | E16: 14.5 | F16: 89.2 | G16: № 88
A17: ГОЛУБЦЫ ЛЕНИВЫЕ | B17: 140/50 | C17: 13.2 | D17: 13.1 | E17: 13.4 | F17: 234.4 | G17: № 75
A18: КОМПОТ ИЗ СУШЕНЫХ ФРУКТОВ | B18: 200 | C18: 0.0 | D18: 0.0 | E18: 15.5 | F18: 61.9 | G18: № 376
A19: ХЛЕБ ПЕКЛЕВАННЫЙ | B19: 50 | C19: 3.3 | D19: 0.4 | E19: 21.2 | F19: 102.0
A20: ХЛЕБ ПШЕНИЧНЫЙ | B20: 50 | C20: 3.8 | D20: 0.3 | E20: 25.1 | F20: 118.4
A21: ИТОГО ЗА ОБЕД | B21: 720 | C21: 23.4 | D21: 16.0 | E21: 90.6 | F21: 612.4
A22: УПЛОТНЕННЫЙ Полдник
A23: ЗАПЕКАНКА ИЗ ТВОРОГА С МОРКОВЬЮ С СОУСОМ МОЛОЧНЫМ СЛАДКИМ С ВАНИЛЬЮ | B23: 150/50 | C23: 19.1 | D23: 18.1 | E23: 39.7 | F23: 404.3 | G23: № 152, № 477
A24: ЧАЙ С ЛИМОНОМ | B24: 180/10/7 | C24: 0.2 | D24: 0.0 | E24: 10.0 | F24: 41.7 | G24: №393
A25: ХЛЕБ ПШЕНИЧНЫЙ | B25: 20 | C25: 1.5 | D25: 0.1 | E25: 9.7 | F25: 46.0
A26: БУЛОЧКА ВАНИЛЬНАЯ | B26: 50 | C26: 4.1 | D26: 3.9 | E26: 28.9 | F26: 167.3 | G26: №467
A27: ИТОГО ЗА ПОЛДНИК | B27: 467 | C27: 24.9 | D27: 22.1 | E27: 88.3 | F27: 659.3
A28: Всего за день: | C28: =SUM(C27+C21+C13+C10) -> 61.2 | D28: =SUM(D27+D21+D13+D10) -> 47.0 | E28: =SUM(E27+E21+E13+E10) -> 254.7 | F28: 1,810.9

Sheet Лист3
